[Event "Early-Titled-Tuesday-Blitz-November-28-2023"]
[Site "Chess.com"]
[Date "2023.11.28"]
[Round "4"]
[White "pinguino120"]
[Black "masterofpuppets2"]
[Result "1/2-1/2"]
[WhiteElo "2288"]
[BlackElo "2498"]
[TimeControl "180+1"]
[EndTime "8:38:54 PST"]
[Termination "Game drawn by repetition"]

1. e4 {[%clk 0:03:00.9]} 1... c6 {[%clk 0:03:00]} 2. d4 {[%clk 0:02:58.5]} 2...
d5 {[%clk 0:02:59.5]} 3. exd5 {[%clk 0:02:57.7]} 3... cxd5 {[%clk 0:03:00.4]} 4.
Bd3 {[%clk 0:02:57.6]} 4... Nc6 {[%clk 0:03:00.3]} 5. c3 {[%clk 0:02:58]} 5...
Qc7 {[%clk 0:03:01]} 6. h3 {[%clk 0:02:52.3]} 6... e6 {[%clk 0:03:01.1]} 7. Nf3
{[%clk 0:02:51.3]} 7... Bd6 {[%clk 0:03:00.9]} 8. O-O {[%clk 0:02:51.8]} 8...
Nge7 {[%clk 0:03:00.4]} 9. a4 {[%clk 0:02:48.3]} 9... Bd7 {[%clk 0:02:55.1]} 10.
Na3 {[%clk 0:02:46.8]} 10... a6 {[%clk 0:02:55]} 11. Re1 {[%clk 0:02:46.7]}
11... f6 {[%clk 0:02:51.4]} 12. b4 {[%clk 0:02:39.2]} 12... e5 {[%clk
0:02:41.9]} 13. b5 {[%clk 0:02:33]} 13... Na5 {[%clk 0:02:41.6]} 14. dxe5 {[%clk
0:02:28.6]} 14... fxe5 {[%clk 0:02:41.4]} 15. Nxe5 {[%clk 0:02:14.9]} 15... O-O
{[%clk 0:02:29.2]} 16. b6 {[%clk 0:01:56.5]} 16... Qc8 {[%clk 0:02:22.4]} 17.
Qh5 {[%clk 0:01:53]} 17... Bf5 {[%clk 0:02:18.4]} 18. Bg5 {[%clk 0:01:39.5]}
18... Ng6 {[%clk 0:01:07.9]} 19. Nxg6 {[%clk 0:01:09.2]} 19... hxg6 {[%clk
0:01:08.8]} 20. Qe2 {[%clk 0:01:06.9]} 20... Qxc3 {[%clk 0:01:05.3]} 21. Bxf5
{[%clk 0:01:02.7]} 21... Rxf5 {[%clk 0:01:00.6]} 22. Qe6+ {[%clk 0:01:02.5]}
22... Kh7 {[%clk 0:00:57.7]} 23. Qxd6 {[%clk 0:00:55.3]} 23... Rxg5 {[%clk
0:00:57.4]} 24. Rac1 {[%clk 0:00:54.9]} 24... Qxh3 {[%clk 0:00:52.9]} 25. Qh2
{[%clk 0:00:49.6]} 25... Qxh2+ {[%clk 0:00:47]} 26. Kxh2 {[%clk 0:00:50.5]}
26... Rf8 {[%clk 0:00:43.3]} 27. f3 {[%clk 0:00:41.9]} 27... Rf4 {[%clk
0:00:42.8]} 28. Re7 {[%clk 0:00:36.9]} 28... Rxa4 {[%clk 0:00:40.3]} 29. Rcc7
{[%clk 0:00:34.2]} 29... Rh5+ {[%clk 0:00:31.2]} 30. Kg3 {[%clk 0:00:30.7]}
30... Rxa3 {[%clk 0:00:24.5]} 31. Rxg7+ {[%clk 0:00:30]} 31... Kh6 {[%clk
0:00:25.2]} 32. Kg4 {[%clk 0:00:22.9]} 32... Rg5+ {[%clk 0:00:20.1]} 33. Kh4
{[%clk 0:00:20.8]} 33... Rh5+ {[%clk 0:00:16.6]} 34. Kg4 {[%clk 0:00:21]} 34...
Rg5+ {[%clk 0:00:10.1]} 35. Kh4 {[%clk 0:00:21.4]} 35... Rh5+ {[%clk 0:00:08]}
36. Kg4 {[%clk 0:00:21.7]} 1/2-1/2

[Event "Early-Titled-Tuesday-Blitz-November-28-2023"]
[Site "Chess.com"]
[Date "2023.11.28"]
[Round "4"]
[White "OneTrickPony_82"]
[Black "GothamChess"]
[Result "0-1"]
[WhiteElo "2393"]
[BlackElo "2675"]
[TimeControl "180+1"]
[EndTime "8:38:55 PST"]
[Termination "GothamChess won by resignation"]

1. d4 {[%clk 0:03:00.9]} 1... d5 {[%clk 0:02:57.3]} 2. c4 {[%clk 0:03:00.9]}
2... dxc4 {[%clk 0:02:56.9]} 3. e3 {[%clk 0:03:00.9]} 3... e5 {[%clk 0:02:56]}
4. Bxc4 {[%clk 0:03:00.9]} 4... Nc6 {[%clk 0:02:56.1]} 5. d5 {[%clk 0:02:53.5]}
5... Nce7 {[%clk 0:02:51.8]} 6. Nc3 {[%clk 0:02:43.4]} 6... Ng6 {[%clk
0:02:51.7]} 7. Nf3 {[%clk 0:02:38.2]} 7... Nf6 {[%clk 0:02:52]} 8. e4 {[%clk
0:02:34.4]} 8... Bd6 {[%clk 0:02:47.4]} 9. Bb5+ {[%clk 0:02:30.8]} 9... Bd7
{[%clk 0:02:45]} 10. Bxd7+ {[%clk 0:02:30.7]} 10... Qxd7 {[%clk 0:02:44.6]} 11.
h3 {[%clk 0:02:30.1]} 11... O-O {[%clk 0:02:44]} 12. O-O {[%clk 0:02:30.2]}
12... h6 {[%clk 0:02:40.5]} 13. Qb3 {[%clk 0:02:27.9]} 13... b6 {[%clk
0:02:34.5]} 14. Be3 {[%clk 0:02:22.5]} 14... Nh5 {[%clk 0:02:30.1]} 15. Qb5
{[%clk 0:02:14.4]} 15... Qe7 {[%clk 0:02:27.1]} 16. Rfe1 {[%clk 0:02:05.2]}
16... f5 {[%clk 0:02:21.6]} 17. exf5 {[%clk 0:01:57.8]} 17... Rxf5 {[%clk
0:02:21.6]} 18. Qc4 {[%clk 0:01:50.6]} 18... Raf8 {[%clk 0:02:16.3]} 19. Qg4
{[%clk 0:01:25.3]} 19... Kh7 {[%clk 0:02:12.7]} 20. Nd2 {[%clk 0:01:17.7]} 20...
Nhf4 {[%clk 0:02:08.6]} 21. Nde4 {[%clk 0:01:12.8]} 21... Nh4 {[%clk 0:01:47.3]}
22. Ng3 {[%clk 0:00:58]} 22... R5f7 {[%clk 0:01:30.2]} 23. Bxf4 {[%clk
0:00:42.7]} 23... Rxf4 {[%clk 0:01:29.9]} 24. Qe2 {[%clk 0:00:40.8]} 24... Rxf2
{[%clk 0:01:25.3]} 25. Qe4+ {[%clk 0:00:26.5]} 25... Kh8 {[%clk 0:01:24.3]} 26.
Rf1 {[%clk 0:00:18.6]} 26... Bc5 {[%clk 0:01:05.9]} 27. Kh1 {[%clk 0:00:15.6]}
27... Nxg2 {[%clk 0:00:42]} 28. d6 {[%clk 0:00:15]} 28... cxd6 {[%clk
0:00:32.8]} 29. Nd5 {[%clk 0:00:14.7]} 29... Qe6 {[%clk 0:00:22.9]} 30. Qxg2
{[%clk 0:00:14.6]} 30... Rxg2 {[%clk 0:00:22.8]} 31. Rxf8+ {[%clk 0:00:14.9]}
31... Kh7 {[%clk 0:00:23.5]} 32. Kxg2 {[%clk 0:00:14.8]} 32... Qxd5+ {[%clk
0:00:23.7]} 33. Kh2 {[%clk 0:00:12.3]} 33... Qd2+ {[%clk 0:00:21.8]} 34. Kh1
{[%clk 0:00:12.5]} 34... d5 {[%clk 0:00:17]} 35. Raf1 {[%clk 0:00:12]} 35...
Bxf8 {[%clk 0:00:16.7]} 0-1

[Event "Early-Titled-Tuesday-Blitz-November-28-2023"]
[Site "Chess.com"]
[Date "2023.11.28"]
[Round "4"]
[White "Jojo_898"]
[Black "Statham_l3"]
[Result "1-0"]
[WhiteElo "2391"]
[BlackElo "2580"]
[TimeControl "180+1"]
[EndTime "8:38:58 PST"]
[Termination "Jojo_898 won on time"]

1. e4 {[%clk 0:03:00.9]} 1... e6 {[%clk 0:02:58.5]} 2. d4 {[%clk 0:03:00.4]}
2... d5 {[%clk 0:02:58.3]} 3. Nd2 {[%clk 0:03:01.2]} 3... c5 {[%clk 0:02:54.9]}
4. Ngf3 {[%clk 0:03:00.8]} 4... Nc6 {[%clk 0:02:53.6]} 5. Bb5 {[%clk 0:02:58.4]}
5... cxd4 {[%clk 0:02:50.9]} 6. Nxd4 {[%clk 0:02:56]} 6... Bd7 {[%clk
0:02:49.1]} 7. N4f3 {[%clk 0:02:50]} 7... dxe4 {[%clk 0:02:26.7]} 8. Nxe4 {[%clk
0:02:50.9]} 8... Qa5+ {[%clk 0:02:26.4]} 9. Nc3 {[%clk 0:02:48.5]} 9... Bb4
{[%clk 0:02:26]} 10. Bxc6 {[%clk 0:02:46.9]} 10... Bxc6 {[%clk 0:02:15.4]} 11.
O-O {[%clk 0:02:39.3]} 11... Rd8 {[%clk 0:02:10.1]} 12. Qe2 {[%clk 0:02:35.5]}
12... Ne7 {[%clk 0:02:07.1]} 13. Ne4 {[%clk 0:02:30]} 13... O-O {[%clk
0:01:58.6]} 14. c3 {[%clk 0:02:25.6]} 14... Qd5 {[%clk 0:01:23.7]} 15. Ng3
{[%clk 0:01:53]} 15... Bc5 {[%clk 0:01:13.4]} 16. Be3 {[%clk 0:01:53.3]} 16...
Bxe3 {[%clk 0:01:05.9]} 17. Qxe3 {[%clk 0:01:54.2]} 17... Nf5 {[%clk 0:00:54.6]}
18. Nxf5 {[%clk 0:01:53.3]} 18... exf5 {[%clk 0:00:50.1]} 19. Qxa7 {[%clk
0:01:49.8]} 19... Qe4 {[%clk 0:00:28.3]} 20. Qe3 {[%clk 0:01:32]} 20... Qg4
{[%clk 0:00:27.3]} 21. h3 {[%clk 0:01:26.4]} 21... Qg6 {[%clk 0:00:20.2]} 22.
Rad1 {[%clk 0:01:24.7]} 22... Rde8 {[%clk 0:00:14.9]} 23. Qd3 {[%clk 0:01:19.8]}
23... Be4 {[%clk 0:00:09.5]} 24. Qe3 {[%clk 0:00:53.9]} 24... Bc2 {[%clk
0:00:09.5]} 25. Ne5 {[%clk 0:00:39.4]} 25... Qh5 {[%clk 0:00:06.8]} 26. Rd2
{[%clk 0:00:37.9]} 26... Ba4 {[%clk 0:00:03.9]} 27. Qf4 {[%clk 0:00:37]} 27...
f6 {[%clk 0:00:02]} 28. Nf3 {[%clk 0:00:32.1]} 28... Bc6 {[%clk 0:00:01.3]} 29.
Nd4 {[%clk 0:00:31.6]} 29... Kh8 {[%clk 0:00:00.8]} 30. Qxf5 {[%clk 0:00:29.1]}
1-0

[Event "Early-Titled-Tuesday-Blitz-November-28-2023"]
[Site "Chess.com"]
[Date "2023.11.28"]
[Round "4"]
[White "dianamirza"]
[Black "Der_Balak_3Halak"]
[Result "0-1"]
[WhiteElo "1993"]
[BlackElo "2302"]
[TimeControl "180+1"]
[EndTime "8:38:59 PST"]
[Termination "Der_Balak_3Halak won on time"]

1. e4 {[%clk 0:02:59.2]} 1... e5 {[%clk 0:02:56.6]} 2. Nf3 {[%clk 0:02:53]} 2...
Nc6 {[%clk 0:02:55.7]} 3. Bb5 {[%clk 0:02:50.5]} 3... Bc5 {[%clk 0:02:53.6]} 4.
O-O {[%clk 0:02:49.6]} 4... Nf6 {[%clk 0:02:54.1]} 5. d3 {[%clk 0:02:46.8]} 5...
d6 {[%clk 0:02:53.7]} 6. a3 {[%clk 0:02:46.3]} 6... a5 {[%clk 0:02:49.3]} 7. Be3
{[%clk 0:02:43.8]} 7... Bxe3 {[%clk 0:02:46.7]} 8. fxe3 {[%clk 0:02:44.7]} 8...
Bd7 {[%clk 0:02:46.5]} 9. Bc4 {[%clk 0:02:44.1]} 9... h6 {[%clk 0:02:45.1]} 10.
Nbd2 {[%clk 0:02:37]} 10... Ne7 {[%clk 0:02:17.4]} 11. d4 {[%clk 0:02:31.2]}
11... Ng6 {[%clk 0:02:11.1]} 12. b4 {[%clk 0:02:21.9]} 12... axb4 {[%clk
0:02:08.3]} 13. axb4 {[%clk 0:02:22.8]} 13... Rxa1 {[%clk 0:02:06.3]} 14. Qxa1
{[%clk 0:02:23.7]} 14... O-O {[%clk 0:02:03.5]} 15. dxe5 {[%clk 0:02:12.2]}
15... dxe5 {[%clk 0:02:03.5]} 16. Nxe5 {[%clk 0:02:11.4]} 16... Nxe5 {[%clk
0:02:02]} 17. Qxe5 {[%clk 0:02:09.7]} 17... Bc6 {[%clk 0:02:01.4]} 18. Rd1
{[%clk 0:01:17.6]} 18... Nxe4 {[%clk 0:01:57.3]} 19. Bd3 {[%clk 0:01:10.8]}
19... Qg5 {[%clk 0:01:14.5]} 20. Qf4 {[%clk 0:00:23.9]} 20... Nc3 {[%clk
0:00:46.5]} 21. Qxg5 {[%clk 0:00:21.8]} 21... hxg5 {[%clk 0:00:45.5]} 22. Ra1
{[%clk 0:00:19.7]} 22... Nd5 {[%clk 0:00:45.2]} 23. b5 {[%clk 0:00:14.2]} 23...
Bd7 {[%clk 0:00:42.8]} 24. e4 {[%clk 0:00:11.2]} 24... Nb4 {[%clk 0:00:41.9]}
25. Bc4 {[%clk 0:00:07.9]} 25... Nxc2 {[%clk 0:00:41]} 26. Ra7 {[%clk 0:00:08]}
26... Rb8 {[%clk 0:00:34.2]} 27. Nf3 {[%clk 0:00:07.5]} 27... Nd4 {[%clk
0:00:30.9]} 28. Nxg5 {[%clk 0:00:06]} 28... Nxb5 {[%clk 0:00:28.7]} 29. Bxf7+
{[%clk 0:00:05.4]} 29... Kf8 {[%clk 0:00:29]} 30. Be6 {[%clk 0:00:04.5]} 30...
Nxa7 {[%clk 0:00:24.8]} 31. Bxd7 {[%clk 0:00:04.5]} 31... b5 {[%clk 0:00:22.5]}
32. Ne6+ {[%clk 0:00:04.7]} 32... Ke7 {[%clk 0:00:22.2]} 33. Nc5 {[%clk
0:00:03.7]} 33... Kd6 {[%clk 0:00:22.8]} 34. Bxb5 {[%clk 0:00:01.9]} 34... Rxb5
{[%clk 0:00:21.1]} 0-1

[Event "Early-Titled-Tuesday-Blitz-November-28-2023"]
[Site "Chess.com"]
[Date "2023.11.28"]
[Round "4"]
[White "kuli4ik"]
[Black "Grischuk"]
[Result "1-0"]
[WhiteElo "2876"]
[BlackElo "3048"]
[TimeControl "180+1"]
[EndTime "8:39:03 PST"]
[Termination "kuli4ik won by resignation"]

1. d4 {[%clk 0:02:58.1]} 1... d5 {[%clk 0:02:59.7]} 2. c4 {[%clk 0:02:57.6]}
2... c6 {[%clk 0:02:59.8]} 3. Nf3 {[%clk 0:02:57.3]} 3... Nf6 {[%clk 0:02:59.7]}
4. e3 {[%clk 0:02:57.2]} 4... Bg4 {[%clk 0:02:59]} 5. Qb3 {[%clk 0:02:55.7]}
5... Qb6 {[%clk 0:02:58.5]} 6. Ne5 {[%clk 0:02:53.3]} 6... Bf5 {[%clk
0:02:58.2]} 7. cxd5 {[%clk 0:02:52.5]} 7... Qxb3 {[%clk 0:02:52.6]} 8. axb3
{[%clk 0:02:51.9]} 8... Nxd5 {[%clk 0:02:53.3]} 9. Bd3 {[%clk 0:02:50.9]} 9...
Bxd3 {[%clk 0:02:46.5]} 10. Nxd3 {[%clk 0:02:44.4]} 10... e6 {[%clk 0:02:46.3]}
11. Bd2 {[%clk 0:02:44.6]} 11... Na6 {[%clk 0:02:43.9]} 12. Ke2 {[%clk
0:02:40.9]} 12... Ndb4 {[%clk 0:02:32.6]} 13. Bxb4 {[%clk 0:02:37.8]} 13... Nxb4
{[%clk 0:02:32.3]} 14. Nc3 {[%clk 0:02:28.8]} 14... Nxd3 {[%clk 0:02:24.2]} 15.
Kxd3 {[%clk 0:02:29.7]} 15... a6 {[%clk 0:02:22.3]} 16. Rhc1 {[%clk 0:02:28]}
16... h5 {[%clk 0:02:19]} 17. Ne4 {[%clk 0:02:25.5]} 17... h4 {[%clk 0:02:10.8]}
18. Kc4 {[%clk 0:02:24.7]} 18... O-O-O {[%clk 0:02:03.6]} 19. b4 {[%clk
0:02:23.6]} 19... Be7 {[%clk 0:01:59.7]} 20. g4 {[%clk 0:02:10.6]} 20... hxg3
{[%clk 0:01:54.4]} 21. hxg3 {[%clk 0:02:10.4]} 21... Rh2 {[%clk 0:01:55.1]} 22.
Rh1 {[%clk 0:02:07.8]} 22... Rdh8 {[%clk 0:01:54.3]} 23. Rxh2 {[%clk 0:02:07.7]}
23... Rxh2 {[%clk 0:01:55.2]} 24. Rf1 {[%clk 0:02:07.6]} 24... Kc7 {[%clk
0:01:51.8]} 25. Nc5 {[%clk 0:02:02]} 25... g5 {[%clk 0:01:18.1]} 26. Nd3 {[%clk
0:01:58.3]} 26... Bd6 {[%clk 0:01:17]} 27. e4 {[%clk 0:01:53.2]} 27... Kd7
{[%clk 0:01:08.6]} 28. Re1 {[%clk 0:01:32.7]} 28... Kd8 {[%clk 0:01:04.4]} 29.
Re3 {[%clk 0:01:27.8]} 29... Rh1 {[%clk 0:00:54.2]} 30. Rf3 {[%clk 0:01:26.9]}
30... Ke7 {[%clk 0:00:53.1]} 31. e5 {[%clk 0:01:26]} 31... Bc7 {[%clk
0:00:51.1]} 32. Nc5 {[%clk 0:01:25.4]} 32... b5+ {[%clk 0:00:47.9]} 33. Kb3
{[%clk 0:01:21.4]} 33... Bb6 {[%clk 0:00:37.6]} 34. Ne4 {[%clk 0:01:02.3]} 34...
g4 {[%clk 0:00:37]} 35. Rd3 {[%clk 0:00:59.8]} 35... Re1 {[%clk 0:00:31.6]} 36.
Nf6 {[%clk 0:00:50.7]} 36... Rc1 {[%clk 0:00:21.1]} 37. Rc3 {[%clk 0:00:44.7]}
37... Rd1 {[%clk 0:00:21.3]} 38. Rxc6 {[%clk 0:00:40.6]} 38... Bxd4 {[%clk
0:00:20.9]} 39. Rc7+ {[%clk 0:00:37.8]} 39... Kf8 {[%clk 0:00:19.2]} 40. Rc8+
{[%clk 0:00:35]} 40... Kg7 {[%clk 0:00:19.2]} 41. Rg8+ {[%clk 0:00:34.6]} 41...
Kh6 {[%clk 0:00:19.5]} 42. Nxg4+ {[%clk 0:00:35.1]} 42... Kh7 {[%clk 0:00:19.9]}
43. Nf6+ {[%clk 0:00:34.3]} 43... Kh6 {[%clk 0:00:20.5]} 44. g4 {[%clk
0:00:34.5]} 1-0

[Event "Early-Titled-Tuesday-Blitz-November-28-2023"]
[Site "Chess.com"]
[Date "2023.11.28"]
[Round "4"]
[White "Narek_Ghimoyan"]
[Black "mortngabriel"]
[Result "1-0"]
[WhiteElo "2301"]
[BlackElo "2498"]
[TimeControl "180+1"]
[EndTime "8:39:09 PST"]
[Termination "Narek_Ghimoyan won by checkmate"]

1. e4 {[%clk 0:03:00.9]} 1... c5 {[%clk 0:02:59.9]} 2. Nf3 {[%clk 0:02:58.8]}
2... Nc6 {[%clk 0:03:00.1]} 3. Bb5 {[%clk 0:02:57.3]} 3... Nf6 {[%clk
0:03:00.4]} 4. Nc3 {[%clk 0:02:54.2]} 4... Qc7 {[%clk 0:03:00.2]} 5. O-O {[%clk
0:02:51.3]} 5... Nd4 {[%clk 0:02:59.5]} 6. Bc4 {[%clk 0:02:49.4]} 6... e6 {[%clk
0:02:58.8]} 7. Re1 {[%clk 0:02:43.6]} 7... Ng4 {[%clk 0:02:58.2]} 8. g3 {[%clk
0:02:28.9]} 8... Nxf3+ {[%clk 0:02:57.9]} 9. Qxf3 {[%clk 0:02:26.5]} 9... Ne5
{[%clk 0:02:58.8]} 10. Qe2 {[%clk 0:02:26.7]} 10... Nxc4 {[%clk 0:02:58.8]} 11.
Qxc4 {[%clk 0:02:27.1]} 11... a6 {[%clk 0:02:59.3]} 12. a4 {[%clk 0:02:11.8]}
12... b6 {[%clk 0:02:59.4]} 13. b3 {[%clk 0:02:09.6]} 13... Bb7 {[%clk
0:02:51.9]} 14. d4 {[%clk 0:02:07.4]} 14... Be7 {[%clk 0:02:27]} 15. Bf4 {[%clk
0:01:58.3]} 15... d6 {[%clk 0:02:23.6]} 16. Rad1 {[%clk 0:01:54.6]} 16... Rc8
{[%clk 0:02:17.9]} 17. d5 {[%clk 0:01:43]} 17... e5 {[%clk 0:02:16.5]} 18. Bc1
{[%clk 0:01:40.9]} 18... O-O {[%clk 0:02:16.1]} 19. f4 {[%clk 0:01:28.9]} 19...
f6 {[%clk 0:02:14.8]} 20. f5 {[%clk 0:01:28.2]} 20... Rb8 {[%clk 0:02:14.2]} 21.
g4 {[%clk 0:01:11.2]} 21... Bc8 {[%clk 0:02:13.9]} 22. Ne2 {[%clk 0:01:05.4]}
22... b5 {[%clk 0:02:13]} 23. axb5 {[%clk 0:01:04.4]} 23... axb5 {[%clk
0:02:13.9]} 24. Qc3 {[%clk 0:01:04.4]} 24... Ra8 {[%clk 0:02:02.2]} 25. Ng3
{[%clk 0:00:53.1]} 25... Bd7 {[%clk 0:01:57.4]} 26. h4 {[%clk 0:00:51.4]} 26...
Ra2 {[%clk 0:01:52.8]} 27. g5 {[%clk 0:00:49]} 27... Rfa8 {[%clk 0:01:45.2]} 28.
Rd2 {[%clk 0:00:23.5]} 28... fxg5 {[%clk 0:01:30.7]} 29. hxg5 {[%clk 0:00:23.2]}
29... Bxg5 {[%clk 0:01:30.7]} 30. Rg2 {[%clk 0:00:21.7]} 30... Bxc1 {[%clk
0:01:25.9]} 31. Rxc1 {[%clk 0:00:22.6]} 31... Be8 {[%clk 0:01:23.9]} 32. f6
{[%clk 0:00:22.2]} 32... Bg6 {[%clk 0:01:18.2]} 33. Nf5 {[%clk 0:00:22.2]} 33...
gxf6 {[%clk 0:01:13.9]} 34. Qh3 {[%clk 0:00:20.8]} 34... Ra1 {[%clk 0:01:10.9]}
35. Rxa1 {[%clk 0:00:19.8]} 35... Rxa1+ {[%clk 0:01:11.8]} 36. Kh2 {[%clk
0:00:20]} 36... Rf1 {[%clk 0:01:02.6]} 37. Qh6 {[%clk 0:00:18.4]} 37... Qd7
{[%clk 0:00:19.1]} 38. Rxg6+ {[%clk 0:00:17.5]} 38... hxg6 {[%clk 0:00:20]} 39.
Qxg6+ {[%clk 0:00:18.3]} 39... Kf8 {[%clk 0:00:20.6]} 40. Qxf6+ {[%clk
0:00:18.9]} 40... Kg8 {[%clk 0:00:15.9]} 41. Qg6+ {[%clk 0:00:19.1]} 41... Kf8
{[%clk 0:00:16]} 42. Qh6+ {[%clk 0:00:18.9]} 42... Ke8 {[%clk 0:00:15]} 43. Qh8+
{[%clk 0:00:18.7]} 43... Kf7 {[%clk 0:00:15.2]} 44. Qg7+ {[%clk 0:00:19.3]}
44... Ke8 {[%clk 0:00:15.5]} 45. Qg8# {[%clk 0:00:20.1]} 1-0

[Event "Early-Titled-Tuesday-Blitz-November-28-2023"]
[Site "Chess.com"]
[Date "2023.11.28"]
[Round "4"]
[White "DonCiao"]
[Black "kunaevchess"]
[Result "1-0"]
[WhiteElo "2124"]
[BlackElo "2285"]
[TimeControl "180+1"]
[EndTime "8:39:11 PST"]
[Termination "DonCiao won on time"]

1. c4 {[%clk 0:03:00.9]} 1... Nf6 {[%clk 0:02:57.7]} 2. g3 {[%clk 0:03:00.9]}
2... g6 {[%clk 0:02:57.2]} 3. Bg2 {[%clk 0:03:00.8]} 3... Bg7 {[%clk 0:02:55.1]}
4. Nc3 {[%clk 0:03:00.8]} 4... d6 {[%clk 0:02:53.1]} 5. e4 {[%clk 0:03:00.4]}
5... O-O {[%clk 0:02:52]} 6. Nge2 {[%clk 0:03:00.8]} 6... e5 {[%clk 0:02:48.3]}
7. O-O {[%clk 0:03:00.4]} 7... Nc6 {[%clk 0:02:45.9]} 8. d3 {[%clk 0:03:00.5]}
8... Bg4 {[%clk 0:02:38.6]} 9. h3 {[%clk 0:03:00.3]} 9... Be6 {[%clk 0:02:36.4]}
10. Nd5 {[%clk 0:02:58.6]} 10... Ne8 {[%clk 0:02:35.1]} 11. Be3 {[%clk
0:02:54.8]} 11... f5 {[%clk 0:02:34.7]} 12. Qd2 {[%clk 0:02:51]} 12... Nf6
{[%clk 0:02:26.3]} 13. Bh6 {[%clk 0:02:43.2]} 13... a5 {[%clk 0:01:58.8]} 14.
Bxg7 {[%clk 0:02:42.9]} 14... Kxg7 {[%clk 0:01:57]} 15. Rac1 {[%clk 0:02:39]}
15... h6 {[%clk 0:01:51.2]} 16. b3 {[%clk 0:02:21.1]} 16... g5 {[%clk
0:01:50.2]} 17. Nxf6 {[%clk 0:02:03.3]} 17... Qxf6 {[%clk 0:01:46.2]} 18. exf5
{[%clk 0:02:03.1]} 18... Bxf5 {[%clk 0:01:43.2]} 19. Nc3 {[%clk 0:01:57.8]}
19... Nd4 {[%clk 0:01:40.7]} 20. Nd5 {[%clk 0:01:51.3]} 20... Qf7 {[%clk
0:01:38.2]} 21. Qe3 {[%clk 0:01:43.9]} 21... c6 {[%clk 0:01:33.9]} 22. Nc3
{[%clk 0:01:38.1]} 22... Rae8 {[%clk 0:01:27.7]} 23. Ne2 {[%clk 0:01:36.1]}
23... Ne6 {[%clk 0:00:58.9]} 24. Kh2 {[%clk 0:01:32.3]} 24... Nc5 {[%clk
0:00:58.2]} 25. d4 {[%clk 0:01:28.2]} 25... Nd3 {[%clk 0:00:51]} 26. Rcd1 {[%clk
0:01:24.4]} 26... Nb4 {[%clk 0:00:50.5]} 27. dxe5 {[%clk 0:01:21.6]} 27... dxe5
{[%clk 0:00:49.4]} 28. Qc3 {[%clk 0:01:17.2]} 28... Qe6 {[%clk 0:00:46.8]} 29.
a3 {[%clk 0:01:14.6]} 29... Nc2 {[%clk 0:00:44.3]} 30. Rd2 {[%clk 0:01:07.3]}
30... Nxa3 {[%clk 0:00:42.1]} 31. Qb2 {[%clk 0:00:53]} 31... Nxc4 {[%clk
0:00:25.3]} 32. bxc4 {[%clk 0:00:52.5]} 32... Qxc4 {[%clk 0:00:23.1]} 33. Qxb7+
{[%clk 0:00:52.4]} 33... Rf7 {[%clk 0:00:23.4]} 34. Qb2 {[%clk 0:00:48.5]} 34...
a4 {[%clk 0:00:18]} 35. Rc1 {[%clk 0:00:48.2]} 35... Qe6 {[%clk 0:00:10.6]} 36.
Rxc6 {[%clk 0:00:44.4]} 36... Qb3 {[%clk 0:00:07.4]} 37. Qxb3 {[%clk 0:00:39.8]}
37... axb3 {[%clk 0:00:08.3]} 38. Rb6 {[%clk 0:00:40.1]} 38... Rc8 {[%clk
0:00:06.6]} 39. Rxb3 {[%clk 0:00:39.4]} 39... Be6 {[%clk 0:00:06.1]} 40. Re3
{[%clk 0:00:38.9]} 40... Rc5 {[%clk 0:00:04.6]} 41. Rd6 {[%clk 0:00:37.1]} 41...
Bc8 {[%clk 0:00:03]} 42. Rf3 {[%clk 0:00:35.3]} 1-0

[Event "Early-Titled-Tuesday-Blitz-November-28-2023"]
[Site "Chess.com"]
[Date "2023.11.28"]
[Round "4"]
[White "Nitzan_Steinberg"]
[Black "Ginzburg_Yakov"]
[Result "1-0"]
[WhiteElo "2904"]
[BlackElo "2597"]
[TimeControl "180+1"]
[EndTime "8:39:12 PST"]
[Termination "Nitzan_Steinberg won by resignation"]

1. e4 {[%clk 0:03:00.9]} 1... c5 {[%clk 0:02:58.7]} 2. Nf3 {[%clk 0:03:00.5]}
2... e6 {[%clk 0:02:58.9]} 3. d4 {[%clk 0:03:00.9]} 3... cxd4 {[%clk 0:02:59]}
4. Nxd4 {[%clk 0:03:01.8]} 4... Nf6 {[%clk 0:02:59.1]} 5. Nc3 {[%clk 0:03:02.1]}
5... Nc6 {[%clk 0:02:59]} 6. a3 {[%clk 0:03:01.1]} 6... Bc5 {[%clk 0:02:56.1]}
7. Nb3 {[%clk 0:02:54.9]} 7... Bb6 {[%clk 0:02:55.7]} 8. Bd3 {[%clk 0:02:52.1]}
8... d5 {[%clk 0:02:52.7]} 9. Bg5 {[%clk 0:02:46.2]} 9... h6 {[%clk 0:02:32.1]}
10. Bh4 {[%clk 0:02:45.6]} 10... g5 {[%clk 0:02:23.7]} 11. Bg3 {[%clk
0:02:44.2]} 11... dxe4 {[%clk 0:02:23.7]} 12. Nxe4 {[%clk 0:02:43.7]} 12... Nxe4
{[%clk 0:02:16.4]} 13. Bxe4 {[%clk 0:02:43.7]} 13... Qxd1+ {[%clk 0:02:11.8]}
14. Rxd1 {[%clk 0:02:43.4]} 14... f5 {[%clk 0:02:05.7]} 15. Bxc6+ {[%clk
0:02:43.6]} 15... bxc6 {[%clk 0:02:05.9]} 16. Be5 {[%clk 0:02:44.5]} 16... O-O
{[%clk 0:02:00.2]} 17. h4 {[%clk 0:02:43]} 17... g4 {[%clk 0:01:57.4]} 18. Nd4
{[%clk 0:02:18.6]} 18... Rf7 {[%clk 0:01:47.6]} 19. Ne2 {[%clk 0:02:09.5]} 19...
Ba6 {[%clk 0:01:34.9]} 20. Nf4 {[%clk 0:02:06.4]} 20... Rd8 {[%clk 0:01:17.8]}
21. Rxd8+ {[%clk 0:01:56.7]} 21... Bxd8 {[%clk 0:01:17.5]} 22. Kd2 {[%clk
0:01:28.6]} 22... Ba5+ {[%clk 0:01:04.3]} 23. b4 {[%clk 0:01:23.4]} 23... Bb6
{[%clk 0:01:03.8]} 24. f3 {[%clk 0:01:23.6]} 24... Rd7+ {[%clk 0:00:48.1]} 25.
Kc3 {[%clk 0:01:23.7]} 25... Be3 {[%clk 0:00:44.5]} 26. h5 {[%clk 0:00:53.6]}
26... Kf7 {[%clk 0:00:43.1]} 27. fxg4 {[%clk 0:00:49.1]} 27... fxg4 {[%clk
0:00:43.1]} 28. Rh4 {[%clk 0:00:48.2]} 28... Rd1 {[%clk 0:00:14.5]} 29. Rxg4
{[%clk 0:00:48]} 29... Ra1 {[%clk 0:00:12.6]} 30. Rg7+ {[%clk 0:00:41.9]} 30...
Ke8 {[%clk 0:00:12.8]} 31. Nxe6 {[%clk 0:00:25.3]} 31... Rxa3+ {[%clk
0:00:12.5]} 32. Kb2 {[%clk 0:00:24.9]} 32... Ra4 {[%clk 0:00:12.8]} 33. Bd6
{[%clk 0:00:21.2]} 33... Bg5 {[%clk 0:00:12.8]} 34. Nxg5 {[%clk 0:00:15.7]}
34... hxg5 {[%clk 0:00:12.9]} 35. h6 {[%clk 0:00:16]} 1-0